[Event "35th Staufer-Open-A 2025"]
[Site "Schwaebisch Gmuend"]
[Date "2025.01.06"]
[Round "9.1"]
[White "Korneev, Oleg"]
[Black "Visakh N R"]
[Result "1/2-1/2"]
[ECO "B33"]
[WhiteElo "2486"]
[BlackElo "2501"]
[Annotator "TA"]
[PlyCount "120"]
[EventDate "2024.11.24"]
[EventType "swiss"]
[EventCountry "GER"]
[SourceTitle "playchess.com"]
[Source "ChessBase"]
[SourceQuality "1"]
[TimeControl "40/6000+30:1200+30"]

{[%evp 36,120,42,14,25,22,17,20,25,16,16,7,23,33,31,37,26,29,24,17,17,25,26,14,14,24,25,15,11,16,17,5,6,4,18,14,13,15,22,22,23,18,20,18,26,0,13,0,26,26,25,25,25,18,12,10,18,10,18,18,26,26,35,22,22,0,0,0,0,0,0,0,0,0,0,0,0,0,0,0,0,0,0,0,0,0,0]} 1. e4 {[%emt 0:00:54]} c5 {[%emt 0:09:26]} 2. Nf3 {[%emt 0:00:03]} Nc6 {[%emt 0:00:06]} 3. d4 {[%emt 0:00:03]} cxd4 {[%emt 0:00:07]} 4. Nxd4 {[%emt 0:00:02]} Nf6 {[%emt 0:00:19]} 5. Nc3 {[%emt 0:00:02]} e5 {[%emt 0:00:50]} 6. Ndb5 {[%emt 0:03:25]} d6 {[%emt 0:00:10]} 7. Bg5 {[%emt 0:00:04]} a6 {[%emt 0:00:09]} 8. Na3 {[%emt 0:00:01]} b5 {[%emt 0:00:26]} 9. Nd5 {[%emt 0:00:02]} Be7 {[%emt 0:00:07]} 10. Bxf6 {[%emt 0:00:03]} Bxf6 {[%emt 0:00:04]} 11. c3 {[%emt 0:00:02]} O-O {[%emt 0:00:12]} 12. Nc2 {[%emt 0:00:02]} Rb8 $1 {[%emt 0:00:26][%mdl 4] is recently more successful than 12...Bg5.} 13. Be2 {[%emt 0:01:22]} Bg5 {[%emt 0:01:19]} 14. Qd3 {[%emt 0:01:59]} Be6 {[%emt 0:07:30] B33: Sicilian: Pelikan and Sveshnikov Variations.} 15. Rd1 {[%emt 0:00:39]} a5 {[%emt 0:01:08]} 16. a3 {[%emt 0:00:39]} Bxd5 $146 {[%emt 0:05:31]} ({Predecessor:} 16... Ne7 17. Nce3 Bxe3 18. Nxe3 b4 19. axb4 axb4 20. Qxd6 Qxd6 21. Rxd6 bxc3 22. bxc3 Rfc8 23. c4 Nc6 24. O-O Nd4 25. Bg4 Bxg4 26. Nxg4 Rxc4 27. Nxe5 Ne2+ 28. Kh1 Rxe4 29. Nf3 {½-½ Hracek,Z (2615)-Caruana,F (2680) EU-ch 11th Rijeka 2010 (9)}) 17. Qxd5 {[%emt 0:00:12]} Qb6 {[%emt 0:00:07]} 18. h4 {[%emt 0:05:40]} Bh6 {[%emt 0:01:49]} 19. b4 {[%emt 0:36:35]} (19. Qxd6 $2 {loses.} Rfd8 20. O-O Rxd6 $19) 19... Rfd8 $1 {[%emt 0:09:01]} 20. bxa5 {[%emt 0:02:09]} Qxa5 {[%emt 0:06:53]} 21. Nb4 {[%emt 0:00:10]} Ne7 {[%emt 0:01:43]} 22. Qb3 {[%emt 0:00:15]} Ra8 {[%emt 0:02:21]} 23. c4 {[%emt 0:30:01]} bxc4 {[%emt 0:23:23]} 24. Bxc4 {[%emt 0:00:11]} Qxa3 {[%emt 0:00:56]} 25. Bxf7+ {[%emt 0:01:01]} Kh8 {[%emt 0:00:08]} 26. Qxa3 {[%emt 0:02:55]} Rxa3 {[%emt 0:02:14]} 27. O-O {[%emt 0:00:56]} Ra4 {[%emt 0:00:39]} 28. Nd5 {[%emt 0:06:20]} Nc6 {[%emt 0:03:22]} 29. Nc3 {[%emt 0:02:39]} Ra7 {[%emt 0:00:06]} 30. Bc4 {[%emt 0:06:29]} Nd4 {[%emt 0:00:55]} 31. Nb5 {[%emt 0:00:05]} Nxb5 {[%emt 0:01:24]} 32. Bxb5 {[%emt 0:00:01]} Rc7 {[%emt 0:03:36]} 33. Ba6 {[%emt 0:00:18]} g6 {[%emt 0:00:55]} 34. Rfe1 {[%emt 0:04:15]} Bg7 {[%emt 0:00:52]} 35. Rc1 {[%emt 0:01:05]} Rxc1 {[%emt 0:00:28]} 36. Rxc1 {[%emt 0:00:01]} Bf6 {[%emt 0:00:31]} 37. g3 {[%emt 0:00:34]} d5 {[%emt 0:01:52]} 38. Rc6 {[%emt 0:00:02]} Kg7 {[%emt 0:00:06]} 39. Rc7+ {[%emt 0:00:05]} Kh8 {[%emt 0:01:02]} 40. Rc6 {[%emt 0:02:17]} Kg7 {[%emt 0:01:34]} 41. Rc7+ {[%emt 0:20:03]} Kh8 {[%emt 0:20:06]} 42. exd5 {[%emt 0:02:37]} Rxd5 {[%emt 0:00:41]} 43. Bb7 {[%emt 0:00:16]} Rd4 {[%emt 0:01:36]} 44. f3 {[%emt 0:00:41]} Bd8 {[%emt 0:01:01]} 45. Rc8 {[%emt 0:04:16]} Kg7 {[%emt 0:00:06]} 46. Be4 {[%emt 0:00:13]} Rd6 {[%emt 0:00:29]} 47. Rb8 {[%emt 0:01:01]} Rd7 {[%emt 0:01:11]} 48. Kg2 {[%emt 0:00:00]} h5 {[%emt 0:00:00]} 49. Kh3 {[%emt 0:00:00]} g5 {[%emt 0:00:00]} 50. Bc6 {[%emt 0:00:00]} Rd6 {[%emt 0:00:00]} 51. Rb7+ {[%emt 0:00:00]} Kf8 {[%emt 0:00:00]} 52. Be4 {[%emt 0:00:00]} gxh4 {[%emt 0:00:00]} 53. gxh4 {[%emt 0:00:00]} Rd1 {[%emt 0:00:00]} 54. Rh7 {[%emt 0:00:00]} Rh1+ {[%emt 0:00:00]} 55. Kg3 {[%emt 0:00:00]} Bxh4+ {[%emt 0:00:00]} 56. Kg2 {[%emt 0:00:00]} Ra1 {[%emt 0:00:00]} 57. Rxh5 {[%emt 0:00:00]} Bf6 {[%emt 0:00:00]} 58. Rh7 {[%emt 0:00:00]} Bg7 {[%emt 0:00:00]} 59. Rh5 {[%emt 0:00:00]} Kf7 {[%emt 0:00:00]} 60. Kg3 {[%emt 0:00:00]} Rg1+ {[%emt 0:00:00]} 1/2-1/2

[Event "35th Staufer-Open-A 2025"]
[Site "Schwaebisch Gmuend"]
[Date "2025.01.06"]
[Round "9.2"]
[White "Vuckovic, Zarko"]
[Black "Peng, Li Min"]
[Result "0-1"]
[ECO "B45"]
[WhiteElo "2344"]
[BlackElo "2518"]
[Annotator "RC"]
[PlyCount "100"]
[EventDate "2024.11.24"]
[EventType "swiss"]
[EventCountry "GER"]
[SourceTitle "playchess.com"]
[Source "ChessBase"]
[SourceQuality "1"]
[TimeControl "40/6000+30:1200+30"]

1. e4 {[%emt 0:00:02]} c5 {[%emt 0:08:34]} 2. Nf3 {[%emt 0:00:06]} e6 {[%emt 0:01:59]} 3. d4 {[%emt 0:00:05]} cxd4 {[%emt 0:00:04]} 4. Nxd4 {[%emt 0:00:03]} Nc6 {[%emt 0:00:07]} 5. Nc3 {[%emt 0:00:07]} Nf6 {[%emt 0:00:08]} 6. Ndb5 {[%emt 0:00:21]} Bc5 {[%emt 0:00:13]} 7. Bf4 {[%emt 0:00:06]} O-O {[%emt 0:07:39]} 8. Bc7 {[%emt 0:00:31]} Qe7 {[%emt 0:00:04]} 9. Bd6 {[%emt 0:00:05]} Bxd6 {[%emt 0:00:05]} 10. Qxd6 {[%emt 0:00:04]} Qd8 {[%emt 0:00:04]} 11. Nc7 {[%emt 0:00:07]} Rb8 {[%emt 0:01:54]} 12. Be2 {[%emt 0:00:31]} b6 {[%emt 0:06:21]} 13. e5 {[%emt 0:01:08]} Rb7 {[%emt 0:00:05]} 14. exf6 {[%emt 0:04:42]} Qxc7 {[%emt 0:01:20]} 15. Qxc7 {[%emt 0:00:08]} Rxc7 {[%emt 0:00:04]} 16. fxg7 {[%emt 0:00:15]} Kxg7 {[%emt 0:00:04]} 17. Nb5 {[%emt 0:00:04]} Rb7 {[%emt 0:00:03]} 18. Nd6 {[%emt 0:00:06]} Rb8 {[%emt 0:00:05]} 19. O-O-O {[%emt 0:01:54]} Bb7 {[%emt 0:00:35]} 20. Bf3 {[%emt 0:00:40]} Ba8 {[%emt 0:03:30]} 21. c4 {[%emt 0:03:57]} f5 {[%emt 0:05:20]} 22. Rhe1 {[%emt 0:10:37]} Kf6 {[%emt 0:02:45]} 23. b3 {[%emt 0:00:38]} a6 {[%emt 0:00:54]} 24. Kb2 {[%emt 0:00:21]} h5 {[%emt 0:01:41]} 25. Bxh5 {[%emt 0:16:51]} Rh8 {[%emt 0:01:16]} 26. g4 {[%emt 0:00:04]} fxg4 {[%emt 0:04:47]} 27. Bxg4 {[%emt 0:00:13]} Rxh2 {[%emt 0:00:06]} 28. Rd2 {[%emt 0:00:19]} Rf8 {[%emt 0:11:03]} 29. Bf3 {[%emt 0:09:30]} Ke7 {[%emt 0:02:51]} 30. Rh1 {[%emt 0:00:34]} Rxh1 {[%emt 0:13:16]} 31. Bxh1 {[%emt 0:01:07]} Ne5 {[%emt 0:00:02]} 32. Bxa8 {[%emt 0:02:04]} Rxa8 {[%emt 0:00:04]} 33. f4 {[%emt 0:01:24]} Nf3 {[%emt 0:00:06]} 34. Rd3 {[%emt 0:00:13]} Ne1 {[%emt 0:00:04]} 35. Rd2 {[%emt 0:09:44]} Rf8 {[%emt 0:03:05]} 36. Kc3 {[%emt 0:00:05]} Nf3 {[%emt 0:00:04]} 37. Rd1 {[%emt 0:02:09]} Nh4 {[%emt 0:00:05]} 38. Rd2 {[%emt 0:04:52]} Ng6 {[%emt 0:01:57]} 39. f5 {[%emt 0:00:09]} exf5 {[%emt 0:01:19]} 40. b4 {[%emt 0:00:06]} Ne5 {[%emt 0:10:20]} 41. b5 {[%emt 0:21:24]} axb5 {[%emt 0:21:12]} 42. Nxb5 {[%emt 0:00:06]} f4 {[%emt 0:01:44]} 43. Re2 {[%emt 0:01:52]} d6 {[%emt 0:02:26]} 44. Re1 {[%emt 0:03:42]} f3 {[%emt 0:05:45]} 45. Kd2 {[%emt 0:00:41]} f2 {[%emt 0:00:08]} 46. Rf1 {[%emt 0:00:04]} Ng4 {[%emt 0:00:03]} 47. Ke2 {[%emt 0:00:13]} Rf4 {[%emt 0:00:05]} 48. Nc3 {[%emt 0:02:10]} Rxc4 {[%emt 0:02:23]} 49. Kd3 {[%emt 0:00:05]} Rxc3+ {[%emt 0:00:07]} 50. Kxc3 {[%emt 0:00:07]} Ne3 {[%emt 0:00:02]} 0-1

[Event "35th Staufer-Open-A 2025"]
[Site "Schwaebisch Gmuend"]
[Date "2025.01.06"]
[Round "9.3"]
[White "Noe, Christopher"]
[Black "Stork, Oliver"]
[Result "1-0"]
[ECO "A90"]
[WhiteElo "2509"]
[BlackElo "2396"]
[Annotator "TA"]
[PlyCount "113"]
[EventDate "2024.11.24"]
[EventType "swiss"]
[EventCountry "GER"]
[SourceTitle "playchess.com"]
[Source "ChessBase"]
[SourceQuality "1"]
[TimeControl "40/6000+30:1200+30"]

{[%evp 16,113,15,15,15,16,21,10,19,13,12,0,17,-9,-7,-15,-19,-24,-9,-10,-8,-16,-8,0,2,-8,16,26,42,16,27,4,31,19,4,3,60,41,106,80,106,53,65,65,71,35,79,70,75,82,237,222,242,239,216,125,296,282,250,250,270,284,284,276,427,410,410,398,432,445,623,621,616,603,623,615,591,600,850,690,29958,29960,29958,29960,29965,29966,29966,29966,29965,29962,29960,29961,5925,5447,29982,29983,29983,29984,29984,29984]} 1. d4 {[%emt 0:00:19]} d5 {[%emt 0:02:12]} 2. c4 {[%emt 0:00:32]} e6 {[%emt 0:00:12]} 3. Nf3 {[%emt 0:01:37]} c6 {[%emt 0:00:13]} 4. Nbd2 {[%emt 0:00:40]} f5 {[%emt 0:00:25]} 5. g3 {[%emt 0:13:14]} Nf6 {[%emt 0:00:26]} 6. Bg2 {[%emt 0:00:06]} Bd6 {[%emt 0:00:15]} 7. O-O {[%emt 0:00:07]} Nbd7 {[%emt 0:00:24]} 8. b3 {[%emt 0:00:30]} O-O {[%emt 0:00:11]} 9. Bb2 {[%emt 0:00:04]} b6 {[%emt 0:12:02]} 10. Ne5 {[%emt 0:13:49]} Bb7 {[%emt 0:02:34]} 11. Ndf3 {[%emt 0:00:49]} Rc8 {[%emt 0:01:56] The position is equal.} 12. Rc1 {[%emt 0:03:24]} Qe7 {[%emt 0:02:58]} 13. Rc2 {[%emt 0:00:44]} Rfd8 {[%emt 0:10:15]} 14. Qa1 {[%emt 0:07:41]} Ne4 {[%emt 0:09:29]} 15. Nxd7 {[%emt 0:17:43]} Rxd7 {[%emt 0:04:33]} 16. Rfc1 {[%emt 0:13:14]} a5 {[%emt 0:19:32][%cal Ba7a5,Ba5a4,Ba4a3][%mdl 32]} 17. Ne1 {[%emt 0:05:07]} a4 {[%emt 0:07:24]} 18. Nd3 {[%emt 0:01:48]} a3 {[%emt 0:01:09]} 19. Bc3 {[%emt 0:00:10]} Ba6 {[%emt 0:01:08]} 20. Be1 {[%emt 0:03:53]} dxc4 {[%emt 0:07:51]} (20... c5 $5) 21. bxc4 {[%emt 0:00:07]} c5 {[%emt 0:00:10]} 22. Qb1 {[%emt 0:01:39]} Rb8 {[%emt 0:04:45]} (22... cxd4 $6 23. Qxb6 Ra8 24. c5 $16 (24. Qxd4 Bf4 $11)) 23. e3 {[%emt 0:00:06]} Qf6 {[%emt 0:00:49]} 24. Rd1 {[%emt 0:02:52]} Qd8 {[%emt 0:04:03]} 25. Qb3 {[%emt 0:02:33]} cxd4 {[%emt 0:09:59]} (25... Bb7 $1 $11) 26. exd4 $14 {[%emt 0:00:14]} Kh8 {[%emt 0:01:23]} ({Better is} 26... Bb7 $14) 27. Rcc1 {[%emt 0:00:56]} Rc8 {[%emt 0:01:13] [#]} 28. c5 {[%emt 0:05:11]} bxc5 {[%emt 0:01:43]} 29. Qxe6 {[%emt 0:05:04][%cal Oe1a5] Ba5! is the strong threat.} (29. Qxa3 Bb7 $11) 29... cxd4 {[%emt 0:00:43] [#]} 30. Ba5 $1 {[%emt 0:00:14]} Qe7 {[%emt 0:03:03]} (30... Rxc1 31. Rxc1) 31. Rxc8+ {[%emt 0:04:28] White now steadily converts the win.} Bxc8 {[%emt 0:00:01]} 32. Qxf5 {[%emt 0:00:10] White is more active.} Nc3 {[%emt 0:00:51]} (32... Nf6 $16 {was called for.}) 33. Re1 $40 {[%emt 0:00:19][%mdl 128] Black is in trouble.} Qf7 {[%emt 0:00:18] [#]} 34. Bh3 {[%emt 0:00:08] Black must now prevent Qxf7.} Qg8 {[%emt 0:02:26][%cal Od7d8]} (34... Qxf5 35. Bxf5 Re7 36. Rxe7 (36. Bxc8 Rxe1+ 37. Nxe1 Nxa2 $18) 36... Bxe7 37. Bxc8) 35. Qg4 {[%emt 0:05:14]} ({White should play} 35. Qxd7 $18 Bxd7 36. Bxd7 Qxa2 (36... Nxa2 $2 37. Re8 $18) 37. Re8+ Qg8 38. Rxg8+ Kxg8 39. Be6+ Kf8 40. Kg2) 35... Re7 $2 {[%emt 0:00:52]} 36. Qxc8 {[%emt 0:00:23]} Rxe1+ {[%emt 0:00:04]} 37. Nxe1 {[%emt 0:00:07]} Qxc8 {[%emt 0:00:04]} 38. Bxc8 {[%emt 0:00:05] Threatens to win with Be6.} Nxa2 {[%emt 0:00:04] [#]} 39. Nd3 {[%emt 0:03:00] Repels Bb4} Nb4 {[%emt 0:00:03]} (39... h5 {was necessary.} 40. Be6 Nc3) 40. Nxb4 {[%emt 0:01:12]} Bxb4 {[%emt 0:00:11]} 41. Bb6 {[%emt 0:20:06]} (41. Bxb4 $2 {perishes.} a2 42. Bg4 a1=Q+ $19 (42... a1=B $2 43. Be2 $18)) 41... Bc3 {[%emt 0:06:26]} 42. Be6 {[%emt 0:00:00]} g6 {[%emt 0:01:48][%cal Bg7g6,Bg6g5][%mdl 32]} 43. Bc5 {[%emt 0:00:00]} Bb2 {[%emt 0:00:07]} 44. Bf8 {[%emt 0:00:00]} h5 {[%emt 0:00:23]} 45. h3 {[%emt 0:00:00][%cal Bh2h3,Bh3g4][%mdl 32]} Kh7 {[%emt 0:00:17]} 46. Bf7 {[%emt 0:00:00]} g5 {[%emt 0:00:12]} 47. g4 {[%emt 0:00:00]} (47. Bxh5 $2 {is the wrong capture.} a2 48. Kg2 a1=Q $19 (48... a1=B 49. Be7 $16)) 47... hxg4 {[%emt 0:00:05]} 48. hxg4 {[%emt 0:00:00]} d3 {[%emt 0:02:15][%cal Bd4d3,Bd3d2][%mdl 32]} 49. Kf1 {[%emt 0:00:00]} d2 {[%emt 0:00:18]} 50. Ke2 {[%emt 0:00:00]} Bc1 {[%emt 0:00:22]} 51. f3 {[%emt 0:00:00]} Kh8 {[%emt 0:00:11]} 52. Bb3 {[%emt 0:00:00]} Kh7 {[%emt 0:00:06]} 53. Bb4 {[%emt 0:00:00]} Kg6 {[%emt 0:00:10]} 54. Bxd2 {[%emt 0:00:00]} Bxd2 {[%emt 0:00:05]} 55. Kxd2 {[%emt 0:00:00] White mates.} Kf6 {[%emt 0:00:04]} 56. Ke3 {[%emt 0:00:00]} Ke5 {[%emt 0:00:05]} 57. Ba2 {[%emt 0:00:00] Weighted Error Value: White=0.10 (very precise) /Black=0.45.  Loses game:     	---       	Black=1      Mistake:       	White=2     	Black=4      Inaccurate:     	White=2     	Black=4      OK:         	White=12    	Black=11     Best:        	White=4     	Black=2} 1-0

[Event "35th Staufer-Open-A 2025"]
[Site "Schwaebisch Gmuend"]
[Date "2025.01.06"]
[Round "9.4"]
[White "Toktomushev, Teimur"]
[Black "Gschnitzer, Adrian"]
[Result "1-0"]
[ECO "D46"]
[WhiteElo "2262"]
[BlackElo "2442"]
[Annotator "TA"]
[PlyCount "77"]
[EventDate "2024.11.24"]
[EventType "swiss"]
[EventCountry "GER"]
[SourceTitle "playchess.com"]
[Source "ChessBase"]
[SourceQuality "1"]
[TimeControl "40/6000+30:1200+30"]

{[%evp 31,77,0,0,0,0,0,13,0,2,6,41,45,51,47,159,145,149,169,147,145,147,151,152,154,221,196,225,224,224,229,302,218,205,208,327,246,417,387,372,372,696,686,797,817,817,817,1444,1329]} 1. d4 {[%emt 0:05:27]} d5 {[%emt 0:00:07]} 2. c4 {[%emt 0:00:10]} e6 {[%emt 0:00:08]} 3. Nc3 {[%emt 0:00:26]} c6 {[%emt 0:00:07]} 4. e3 {[%emt 0:00:18]} Nf6 {[%emt 0:00:10]} 5. Nf3 {[%emt 0:00:08]} Nbd7 {[%emt 0:00:09]} 6. Qc2 {[%emt 0:00:12]} Bd6 {[%emt 0:00:07]} 7. Bd3 {[%emt 0:00:09]} dxc4 {[%emt 0:00:12]} 8. Bxc4 {[%emt 0:00:07]} b5 {[%emt 0:00:12]} 9. Bd3 {[%emt 0:00:08]} O-O {[%emt 0:00:17]} 10. O-O {[%emt 0:00:07]} Bb7 {[%emt 0:00:29]} 11. e4 {[%emt 0:01:47]} e5 {[%emt 0:00:13]} 12. dxe5 {[%emt 0:01:34]} Nxe5 {[%emt 0:00:08]} 13. Nxe5 {[%emt 0:00:11]} Bxe5 {[%emt 0:00:08]} 14. h3 {[%emt 0:00:18]} a6 {[%emt 0:00:14]} 15. Be3 {[%emt 0:00:09]} Re8 {[%emt 0:00:14]} 16. Rad1 {[%emt 0:10:37]} Qe7 {[%emt 0:00:37]} 17. a4 {[%emt 0:09:23]} Rac8 {[%emt 0:00:14]} 18. Rfe1 {[%emt 0:05:52]} h6 {[%emt 0:18:31]} 19. Qc1 {[%emt 0:29:29]} Rcd8 {[%emt 0:22:44]} 20. Bb6 {[%emt 0:18:35]} Bc7 {[%emt 0:02:20]} 21. Bxc7 {[%emt 0:00:16]} Qxc7 {[%emt 0:00:09]} 22. e5 $1 {[%emt 0:02:44]} Rxe5 {[%emt 0:17:36]} (22... Nd7 $1 $14) 23. Rxe5 $16 {[%emt 0:00:18]} Qxe5 {[%emt 0:00:08] [#]} 24. Bh7+ $1 {[%emt 0:00:05][%mdl 512]} Kxh7 {[%emt 0:00:09]} 25. Rxd8 {[%emt 0:00:10]} b4 {[%emt 0:00:22][%cal Oe5e7]} 26. Qc2+ {[%emt 0:08:57]} g6 {[%emt 0:00:13] [#]} 27. Ne2 $1 {[%emt 0:00:20]} (27. Qe2 $2 Qc7 28. Rd3 bxc3 29. Rxc3 Kg8 $17) 27... c5 {[%emt 0:01:09]} (27... Qe7 $16 28. Rd1 Kg7) 28. Qd2 $40 {[%emt 0:05:30][%mdl 128] White goes for the king.} Kg7 {[%emt 0:19:53]} 29. Qd6 {[%emt 0:04:28] Inhibits Bc6.} Qxd6 {[%emt 0:00:11]} 30. Rxd6 {[%emt 0:00:03][%mdl 4096] Endgame KRN-KBN} a5 {[%emt 0:01:25]} 31. Rb6 {[%emt 0:02:15]} Bd5 {[%emt 0:07:22]} 32. Nc1 {[%emt 0:05:20] and Ra6 would now be decisive Dodges Bb3} c4 {[%emt 0:00:31]} (32... Nd7 33. Ra6 Kf8) 33. Rb5 {[%emt 0:00:42]} b3 $2 {[%emt 0:03:02]} (33... c3 {keeps fighting.} 34. b3 (34. Rxa5 $2 cxb2 35. Rc5 Ne4 $19) (34. bxc3 Bc4 $18) 34... Bc6) 34. Ne2 {[%emt 0:00:24]} ({Less strong is} 34. Rxa5 c3 35. Nxb3 (35. bxc3 $2 b2 $19) (35. Nd3 Be4 $15) 35... cxb2 $18) 34... Bc6 {[%emt 0:01:53]} 35. Rxa5 {[%emt 0:00:30]} Ne4 $2 {[%emt 0:00:16]} (35... Nd5 36. Rc5 c3 37. Nxc3 (37. Rxc6 $2 {loses.} cxb2 38. Kh2 b1=Q $19) 37... Nxc3 38. Rxc3 (38. Rxc6 Nxa4 39. Rd6 Nxb2 $18) 38... Bxa4) 36. f3 {[%emt 0:00:45]} c3 {[%emt 0:01:30][%cal Bc4c3,Bc3b2][%mdl 32]} 37. fxe4 {[%emt 0:00:14]} cxb2 {[%emt 0:00:02]} 38. Nc3 {[%emt 0:00:04]} Bxe4 {[%emt 0:00:27]} 39. Rb5 {[%emt 0:00:14]} 1-0

[Event "35th Staufer-Open-A 2025"]
[Site "Schwaebisch Gmuend"]
[Date "2025.01.06"]
[Round "9.5"]
[White "Lu, Miaoyi"]
[Black "Skembris, Spyridon"]
[Result "0-1"]
[ECO "B38"]
[WhiteElo "2429"]
[BlackElo "2264"]
[Annotator "TA"]
[PlyCount "92"]
[EventDate "2024.11.24"]
[EventType "swiss"]
[EventCountry "GER"]
[SourceTitle "playchess.com"]
[Source "ChessBase"]
[SourceQuality "1"]
[TimeControl "40/6000+30:1200+30"]

{[%evp 18,92,59,62,60,59,83,75,86,86,91,75,94,71,80,64,204,212,213,220,204,195,206,208,201,209,219,117,110,128,116,125,108,81,76,81,93,47,83,51,18,36,51,-152,-147,-221,-239,-542,-303,-471,-481,-485,-466,-720,-572,-550,-546,-781,-600,-717,-440,-741,-720,-1450,-1448,-1432,-1411,-5256,-8123,-29978,-29979,-4927,-4986,-29982,-29983,-29985,-29985]} 1. e4 {[%emt 0:00:03]} c5 {[%emt 0:01:34]} 2. Nf3 {[%emt 0:00:42]} g6 {[%emt 0:00:48]} 3. d4 {[%emt 0:01:26]} cxd4 {[%emt 0:00:25]} 4. Nxd4 {[%emt 0:01:32]} Bg7 {[%emt 0:00:21]} 5. c4 {[%emt 0:01:40]} Nc6 {[%emt 0:00:23]} 6. Be3 {[%emt 0:00:05]} Nf6 {[%emt 0:00:30]} 7. Nc3 {[%emt 0:00:03]} O-O {[%emt 0:00:17]} 8. Be2 {[%emt 0:01:25]} b6 {[%emt 0:02:08]} 9. Qd2 {[%emt 0:01:25]} Bb7 {[%emt 0:01:17]} 10. f3 {[%emt 0:00:37]} Rc8 {[%emt 0:03:00]} 11. O-O-O {[%emt 0:04:32]} d6 {[%emt 0:10:16]} 12. Nxc6 {[%emt 0:13:03]} Bxc6 {[%emt 0:02:52]} 13. Kb1 {[%emt 0:03:09]} Qc7 {[%emt 0:03:03]} 14. h4 {[%emt 0:07:09]} Qb7 {[%emt 0:03:01]} 15. h5 {[%emt 0:15:45]} Nxh5 {[%emt 0:07:34]} 16. Bh6 {[%emt 0:02:21][%cal Oh1h5]} e5 {[%emt 0:06:05] [#]} ({Black should play} 16... Be5 $1 $14) 17. Rxh5 $1 $18 {[%emt 0:13:43][%mdl 512]} gxh5 {[%emt 0:00:34] [#]} 18. Bxg7 $1 {[%emt 0:00:08]} (18. Qxd6 f5 19. Bxg7 Qxg7 20. exf5 Qf6 21. Qxf6 Rxf6 $17) 18... Kxg7 {[%emt 0:00:28]} 19. Qg5+ {[%emt 0:00:21]} (19. Qxd6 f6 20. Nd5 Rcd8 $17) 19... Kh8 {[%emt 0:00:04][%cal Of7f5]} 20. Qf6+ {[%emt 0:00:17]} (20. Rxd6 f6 21. Qxh5 Qg7 $11) 20... Kg8 {[%emt 0:00:10]} 21. Rxd6 {[%emt 0:07:55][%cal Oc4c5]} Rfe8 {[%emt 0:00:13]} 22. Bd3 {[%emt 0:02:34]} (22. c5 $18) 22... Re6 $16 {[%emt 0:02:02]} 23. Rxe6 {[%emt 0:00:21]} fxe6 {[%emt 0:00:06]} 24. Qxe6+ {[%emt 0:00:05]} Kh8 {[%emt 0:00:14]} 25. Nd5 {[%emt 0:05:56][%mdl 1024] White has strong compensation.} Re8 {[%emt 0:07:04] Dodges Ne7} 26. Qf6+ {[%emt 0:02:04]} Kg8 {[%emt 0:00:03]} 27. Nb4 {[%emt 0:07:00]} ({White should try} 27. Qh6 $16 {aiming for Nf6+.} Kh8 28. c5 (28. Qxh5 Qg7 $11) 28... Bxd5 29. exd5 bxc5 30. Qxh5) 27... Bd7 $14 {[%emt 0:05:56]} 28. c5 {[%emt 0:00:02]} Be6 {[%emt 0:00:24]} 29. Bb5 {[%emt 0:09:57]} (29. Qxe5 $2 Bxa2+ 30. Kxa2 Rxe5 $19) 29... Qe7 {[%emt 0:00:35]} 30. Qxe7 $2 {[%emt 0:02:25]} (30. Qh6 $14 bxc5 31. Bxe8 (31. Qxh5 Rc8 $11) 31... cxb4 32. Bc6 (32. Bxh5 a5 $16) (32. Qxh5 Qd8 $11)) 30... Rxe7 {[%emt 0:00:02][%mdl 4096] Endgame KRB-KBN} 31. c6 {[%emt 0:03:31]} (31. cxb6 $17 axb6 32. Kc2) 31... Rg7 {[%emt 0:02:50]} 32. Nd3 $2 {[%emt 0:02:39]} (32. Bf1 {was the crucial defense.}) 32... Kf8 {[%emt 0:01:51]} 33. Nxe5 {[%emt 0:01:41]} (33. Ba6 {is a better defense.} Ke8 (33... Rxg2 $2 34. c7 $19) 34. f4) 33... Rxg2 $19 {[%emt 0:00:28]} 34. c7 {[%emt 0:01:17]} Ke7 {[%emt 0:00:33] Wards off Nd7} 35. f4 {[%emt 0:00:35]} (35. Ba6 $142 Kd6 36. Nc4+ Kxc7 37. Ne3) 35... Kd6 {[%emt 0:01:21][%cal Oh5h4]} 36. f5 {[%emt 0:00:20]} Bc8 {[%emt 0:00:36]} (36... Kxe5 $2 {too greedy.} 37. fxe6 Rg8 (37... Rg1+ $2 38. Kc2 $18) 38. e7 $18) 37. Nd3 {[%emt 0:00:36]} Kxc7 {[%emt 0:00:11]} 38. Nf4 {[%emt 0:00:26]} Rg4 {[%emt 0:01:04]} 39. Nd5+ {[%emt 0:00:36]} (39. Nxh5 $142 Rxe4 40. Ng7) 39... Kd6 {[%emt 0:00:24]} 40. Nf6 {[%emt 0:00:29]} Rg1+ {[%emt 0:00:21]} 41. Kc2 {[%emt 0:20:01]} h4 {[%emt 0:20:56]} 42. Ne8+ {[%emt 0:00:00]} Ke5 {[%emt 0:00:00][%cal Oh4h3] ( -> ...h3!)} 43. f6 {[%emt 0:00:00]} Be6 {[%emt 0:00:00]} 44. Nc7 {[%emt 0:01:17]} Kxf6 {[%emt 0:00:00] and ...h3 would now be decisive} 45. Nxe6 {[%emt 0:01:12]} Kxe6 {[%emt 0:00:00]} 46. Ba6 {[%emt 0:00:08]} Ke5 {[%emt 0:00:00]} 0-1